bitfinex/quotes_ETHUSD_20240915
["timestamp","ask_amount","ask_price","bid_price","bid_amount"]
[1726401010052,0.0397856,2413.2,2412.9,1.61279994]
[1726401010225,0.0397856,2413.2,2412.8,5.01562314]
[1726401010558,0.0397856,2413.2,2412.9,1.61280406]
[1726401010728,0.69733981,2413.2,2412.8,5.01562314]
[1726401011054,0.0397856,2413.2,2412.9,1.61282667]
[1726401011213,0.0397856,2413.2,2412.8,5.01562314]
[1726401011551,0.0397856,2413.2,2412.9,1.61285334]
[1726401011753,0.0397856,2413.2,2412.8,5.01562314]
[1726401011921,0.0397856,2413.2,2412.9,1.61285439]
[1726401012110,0.69733981,2413.2,2412.8,5.01562314]
[1726401012307,0.0397856,2413.2,2412.9,1.61285547]
[1726401012549,0.0397856,2413.2,2412.8,5.01562314]
[1726401012751,0.0397856,2413.2,2412.9,1.61288526]
[1726401012961,0.0397856,2413.2,2412.8,5.01562314]
[1726401013128,0.0397856,2413.2,2412.9,1.61288583]
[1726401013329,0.0397856,2413.2,2412.8,5.01562314]
[1726401013653,0.0397856,2413.2,2412.9,1.61292631]
[1726401013963,0.0397856,2413.2,2412.8,5.01562314]
[1726401014131,0.0397856,2413.2,2412.9,1.61292882]
[1726401014338,0.0397856,2413.2,2412.8,5.01562314]
[1726401014534,0.0397856,2413.2,2412.9,1.61298823]
[1726401014842,0.0397856,2413.2,2412.8,5.01562314]
[1726401015046,0.0397856,2413.2,2412.9,1.61298808]
[1726401015212,0.0397856,2413.2,2412.8,5.01562314]
[1726401015416,0.0397856,2413.2,2412.9,1.61299809]
[1726401015652,0.0397856,2413.2,2412.8,5.01562314]
[1726401015861,0.0397856,2413.2,2412.9,1.61299798]
[1726401016154,0.0397856,2413.2,2412.8,5.01562314]
[1726401016360,0.0397856,2413.2,2412.9,1.6130009]
[1726401016508,0.0397856,2413.2,2412.8,5.01562314]
[1726401016715,0.0397856,2413.2,2412.9,1.61302537]
[1726401017058,0.0397856,2413.2,2412.8,5.01562314]
[1726401017260,0.0397856,2413.2,2412.9,1.61303277]
[1726401017467,0.0397856,2413.2,2412.8,5.01562314]
[1726401017755,0.0397856,2413.2,2412.9,1.61305036]
[1726401017957,0.0397856,2413.2,2412.8,5.01562314]
[1726401018262,0.0397856,2413.2,2412.9,1.61305314]
[1726401018556,0.0397856,2413.2,2412.8,5.01562314]
[1726401018753,0.0397856,2413.2,2412.9,1.61308772]
[1726401018940,0.0397856,2413.2,2412.8,5.01562314]
[1726401019141,0.0397856,2413.2,2412.9,1.61308794]
[1726401019352,0.0397856,2413.2,2412.8,5.01562314]
[1726401019664,0.0397856,2413.2,2412.9,1.61308766]
[1726401019863,0.0397856,2413.2,2412.8,5.01562314]
[1726401020158,0.0397856,2413.2,2413.1,4.14404]
[1726401020360,0.0397856,2413.2,2413.1,6.62830531]
[1726401020518,0.0397856,2413.2,2413.1,5.75711217]
[1726401020742,0.0397856,2413.2,2413.1,6.62858651]
[1726401020940,0.0397856,2413.2,2413.1,9.2099148]
[1726401021160,0.0397856,2413.2,2413.1,8.38183717]
[1726401022395,0.0397856,2413.2,2413.1,7.51027129]
[1726401022576,0.0397856,2413.2,2413.1,8.38183717]
[1726401023258,0.0397856,2413.2,2413.1,5.75627191]
[1726401023465,0.0397856,2413.2,2413.1,6.62783779]
[1726401024352,0.0397856,2413.2,2413.1,10.85474771]
[1726401024578,0.0397856,2413.2,2413.1,13.29984771]
[1726401025314,0.0397856,2413.2,2413.1,13.21697779]
[1726401025514,0.0397856,2413.2,2413.1,14.84309083]
[1726401025879,0.0397856,2413.2,2413.1,14.84096684]
[1726401026078,0.0397856,2413.2,2413.1,14.84095645]
[1726401029076,0.0397856,2413.2,2413.1,13.96939057]
[1726401030803,0.0397856,2413.2,2413.1,13.96818648]
[1726401031981,0.0397856,2413.2,2413.1,5.77015304]
[1726401031982,0.12648116,2413.2,2413.1,5.77015304]
[1726401032215,0.12648116,2413.2,2413.0,4.14408]
[1726401033304,0.12648116,2413.2,2413.0,8.28819]
[1726401033710,0.12648116,2413.2,2413.0,4.14408]
[1726401034274,0.12648116,2413.2,2413.0,8.28818]
[1726401037882,0.12648116,2413.2,2413.1,4.14404]
[1726401038076,0.12648116,2413.2,2413.1,5.75265083]
[1726401038296,0.12648116,2413.2,2413.1,8.08185083]
[1726401039418,0.12648116,2413.2,2413.1,12.30876181]
[1726401039617,0.12648116,2413.2,2413.1,12.22589083]
[1726401039824,0.12648116,2413.2,2413.1,13.41548015]
[1726401040276,0.12648116,2413.2,2413.1,13.41503224]
[1726401043296,0.12648116,2413.2,2413.1,13.41490188]
[1726401045331,0.12648116,2413.2,2413.1,13.41479118]
[1726401050026,0.12648116,2413.2,2413.1,13.41481922]
[1726401054794,0.12648116,2413.2,2413.1,13.41499373]
[1726401056798,0.12648116,2413.2,2413.1,14.28655961]
[1726401059605,0.12648116,2413.2,2413.1,12.6784352]
[1726401059812,0.12648116,2413.2,2413.1,14.28718812]
[1726401062159,0.12648116,2413.2,2413.1,13.41562224]
[1726401063144,0.12648116,2413.2,2413.1,16.86539661]
[1726401065922,0.12648116,2413.2,2413.1,17.30280191]
[1726401067952,0.12648116,2413.2,2413.1,17.30527162]
[1726401070851,0.12648116,2413.2,2413.1,17.30544292]
[1726401072258,0.0397856,2413.2,2413.1,17.30669008]
[1726401072749,0.0397856,2413.2,2413.1,17.30654907]
[1726401073558,0.0397856,2413.2,2413.1,17.30637648]
[1726401074859,0.0397856,2413.2,2413.1,15.56452296]
[1726401075247,0.0397856,2413.2,2413.1,19.70856296]
[1726401075421,0.0397856,2413.2,2413.1,21.886047]
[1726401075627,0.12512338,2413.2,2413.1,21.886047]
[1726401076040,0.0397856,2413.2,2413.1,21.886047]
[1726401076950,0.12513806,2413.2,2413.1,21.886047]
[1726401077155,0.0397856,2413.2,2413.1,21.886047]
[1726401077346,0.12513806,2413.2,2413.1,21.886047]
[1726401077677,0.12513806,2413.2,2413.1,21.88542843]
[1726401078276,0.0397856,2413.2,2413.1,21.88542843]
[1726401078778,0.0397856,2413.2,2413.1,21.88523098]
[1726401078939,0.12513806,2413.2,2413.1,21.88523098]
[1726401079134,0.0397856,2413.2,2413.1,19.70831705]
[1726401079379,0.12513806,2413.2,2413.1,21.88527439]
[1726401079669,0.12225554,2413.2,2413.1,21.88499347]
[1726401079883,0.12225554,2413.2,2413.1,22.90336371]
[1726401080170,0.12225554,2413.2,2413.1,22.90336386]
[1726401080471,0.12225554,2413.2,2413.1,22.39262564]
[1726401080472,0.0397856,2413.2,2413.1,22.39262564]
[1726401080825,0.0397856,2413.2,2413.1,21.88490862]
[1726401081550,0.0397856,2413.2,2413.1,22.39257022]
[1726401082036,0.0397856,2413.2,2413.1,22.90317541]
[1726401082234,0.0397856,2413.2,2413.1,22.39257022]
[1726401082486,0.0397856,2413.2,2413.1,21.88469603]
[1726401083870,0.0397856,2413.2,2413.1,19.70831705]
[1726401084082,0.0397856,2413.2,2413.1,21.8846055]
[1726401084245,0.0397856,2413.2,2413.1,21.88466288]
[1726401084449,0.0397856,2413.2,2413.1,21.88450642]
[1726401084657,0.0397856,2413.2,2413.1,19.70831705]
[1726401084961,0.0397856,2413.2,2413.1,21.8845045]
[1726401085648,0.0397856,2413.2,2413.1,22.39201363]
[1726401086048,0.0397856,2413.2,2413.1,22.39123538]
[1726401086462,0.0397856,2413.2,2413.1,22.39100132]
[1726401086660,0.0397856,2413.2,2413.1,28.51279069]
[1726401086988,0.0397856,2413.2,2413.1,28.51170226]
[1726401087166,5.6e-06,2413.2,2413.1,32.65574226]
[1726401087371,5.6e-06,2413.2,2413.1,32.1451624]
[1726401087600,5.6e-06,2413.2,2413.1,32.65566692]
[1726401088001,5.6e-06,2413.2,2413.1,32.65566314]
[1726401089294,5.6e-06,2413.2,2413.1,30.04514539]
[1726401090907,5.6e-06,2413.2,2413.1,29.53464465]
[1726401091210,5.6e-06,2413.2,2413.1,30.04514298]
[1726401091504,5.6e-06,2413.2,2413.1,28.43530578]
[1726401091681,5.6e-06,2413.2,2413.1,30.04409371]
[1726401093299,5.6e-06,2413.2,2413.1,27.3606363]
[1726401093491,5.6e-06,2413.2,2413.1,30.04409371]
[1726401096404,5.6e-06,2413.2,2413.1,30.04403209]
[1726401098407,5.6e-06,2413.2,2413.1,27.36057468]
[1726401099927,5.6e-06,2413.2,2413.1,25.75184837]
[1726401100219,5.6e-06,2413.2,2413.1,32.65134603]
[1726401100986,5.6e-06,2413.2,2413.1,32.65047679]
[1726401101498,5.6e-06,2413.2,2413.1,32.13997846]
[1726401101841,5.6e-06,2413.2,2413.1,32.65039041]
[1726401103029,5.6e-06,2413.2,2413.1,37.34443041]
[1726401103370,9.2880856,2413.9,2413.8,8.28568]
[1726401103503,1.9980856,2413.9,2413.8,8.28568]
[1726401103702,2.08178761,2413.9,2413.8,8.28568]
[1726401104535,2.08178761,2413.9,2413.8,5.75080738]
[1726401104736,2.08178761,2413.9,2413.8,4.14284]
[1726401105524,2.08178761,2413.9,2413.7,4.14301]
[1726401110886,2.08178761,2413.9,2413.8,4.14284]
[1726401117331,2.08178761,2413.9,2413.6,5.01193954]
[1726401117530,2.08178761,2413.9,2413.7,1.61013554]
[1726401117776,2.08178761,2413.9,2413.7,4.14291]
[1726401119376,2.08178761,2413.9,2413.8,1.61001254]
[1726401119740,2.08178761,2413.9,2413.8,1.61014307]
[1726401122934,2.08178761,2413.9,2413.8,5.75298307]
[1726401123273,0.12348761,2413.9,2413.8,8.04698731]
[1726401125354,0.12348761,2413.9,2413.8,6.6220195]
[1726401127374,0.12348761,2413.9,2413.8,5.75313996]
[1726401127539,0.12348761,2413.9,2413.8,6.62345991]
[1726401127960,0.12348761,2413.9,2413.8,5.75346915]
[1726401128153,0.12348761,2413.9,2413.8,6.62378571]
[1726401128442,0.12348761,2413.9,2413.8,6.62381562]
[1726401129946,0.12348761,2413.9,2413.8,6.62391416]
[1726401130383,0.12348761,2413.9,2413.8,5.75346915]
[1726401130797,0.12348761,2413.9,2413.8,6.62398862]
[1726401130991,0.12348761,2413.9,2413.8,5.75346915]
[1726401131290,0.12348761,2413.9,2413.8,6.62415677]
[1726401131465,0.12348761,2413.9,2413.8,14.95595782]
[1726401132295,0.12348761,2413.9,2413.8,14.95588986]
[1726401132591,0.12348761,2413.9,2413.8,14.95662359]
[1726401133093,0.12348761,2413.9,2413.8,14.95682932]
[1726401133257,0.12348761,2413.9,2413.8,12.80832671]
[1726401133589,0.12348761,2413.9,2413.8,14.95677784]
[1726401135095,0.12348761,2413.9,2413.8,14.95671301]
[1726401135300,0.12348761,2413.9,2413.8,14.95672027]
[1726401137984,0.12348761,2413.9,2413.8,17.34762027]
[1726401139011,0.12348761,2413.9,2413.8,20.18714096]
[1726401139219,0.12348761,2413.9,2413.8,21.92490005]
[1726401139402,0.12348761,2413.9,2413.8,21.92776569]
[1726401139595,0.12348761,2413.9,2413.8,22.36394503]
[1726401140330,0.12348761,2413.9,2413.8,20.18714096]
[1726401140947,0.12348761,2413.9,2413.8,22.36394503]
[1726401141781,0.12348761,2413.9,2413.8,20.18714096]
[1726401141989,0.12348761,2413.9,2413.8,22.36394503]
[1726401142625,0.12348761,2413.9,2413.8,21.92681566]
[1726401142827,0.12348761,2413.9,2413.8,20.18714096]
[1726401143128,0.12348761,2413.9,2413.8,21.92713769]
[1726401143331,0.12348761,2413.9,2413.8,21.92717059]
[1726401143882,0.12348761,2413.9,2413.8,21.92688452]
[1726401145522,0.12348761,2413.9,2413.8,22.36394503]
[1726401146924,0.12348761,2413.9,2413.8,22.35871509]
[1726401147230,0.0397856,2413.9,2413.8,22.35871509]
[1726401147414,0.11654002,2413.9,2413.8,22.35871509]
[1726401147593,0.0397856,2413.9,2413.8,22.35871509]
[1726401148503,0.0397856,2413.9,2413.8,20.18498246]
[1726401148703,0.0397856,2413.9,2413.8,22.35871509]
[1726401149092,0.0397856,2413.9,2413.8,20.18498246]
[1726401149394,0.0397856,2413.9,2413.8,22.35871509]
[1726401149589,0.0397856,2413.9,2413.8,21.92344202]
[1726401149793,0.0397856,2413.9,2413.8,22.35871509]
[1726401150409,0.0397856,2413.9,2413.8,21.92342945]
[1726401150595,0.0397856,2413.9,2413.8,22.35871509]
[1726401151135,0.0397856,2413.9,2413.8,20.18498246]
[1726401151325,0.0397856,2413.9,2413.8,22.35871509]
[1726401151527,0.0397856,2413.9,2413.8,18.57577808]
[1726401151723,0.0397856,2413.9,2413.8,20.18410528]
[1726401152033,0.0397856,2413.9,2413.8,22.35665348]
[1726401153653,0.0397856,2413.9,2413.8,20.18410528]
[1726401154008,0.0397856,2413.9,2413.8,22.35665348]
[1726401155705,0.0397856,2413.9,2413.8,20.18410528]
[1726401155906,0.0397856,2413.9,2413.8,21.92160235]
[1726401156203,0.0397856,2413.9,2413.8,21.92110187]
[1726401158643,0.0397856,2413.9,2413.8,21.92107195]
[1726401159643,0.0397856,2413.9,2413.8,20.1836048]
[1726401159858,0.0397856,2413.9,2413.8,21.9211064]
[1726401160148,0.0397856,2413.9,2413.8,20.1836048]
[1726401160352,0.0397856,2413.9,2413.8,21.92115642]
[1726401160652,0.0397856,2413.9,2413.8,20.1836048]
[1726401161154,0.0397856,2413.9,2413.8,20.18361399]
[1726401161518,0.0397856,2413.9,2413.8,21.92121682]
[1726401164246,0.0397856,2413.9,2413.8,20.18361399]
[1726401164451,0.0397856,2413.9,2413.8,21.92144915]
[1726401165652,0.0397856,2413.9,2413.8,22.35549613]
[1726401165864,0.0397856,2413.9,2413.8,22.35634655]
[1726401167971,0.0397856,2413.9,2413.8,20.18397823]
[1726401168125,0.0397856,2413.9,2413.8,22.35634655]
[1726401170562,0.0397856,2413.9,2413.8,22.35625262]
[1726401172636,0.0397856,2413.9,2413.8,20.18394457]
[1726401173460,0.0397856,2413.9,2413.8,22.35625262]
[1726401174882,0.0397856,2413.9,2413.8,19.53150246]
[1726401175196,1.9980856,2413.9,2413.8,9.63785794]
[1726401175486,1.9980856,2413.9,2413.8,6.62054628]
[1726401175487,2.07195871,2413.9,2413.8,6.62054628]
[1726401175689,2.07195871,2413.9,2413.8,5.75100649]
[1726401176347,2.07195871,2413.9,2413.8,4.14284]
[1726401177148,2.07195871,2413.9,2413.8,5.75262019]
[1726401177482,2.07195871,2413.9,2413.8,4.14284]
[1726401177686,2.07195871,2413.9,2413.8,5.75256954]
[1726401178049,2.07195871,2413.9,2413.8,4.14284]
[1726401178751,2.07195871,2413.9,2413.8,9.20121398]
[1726401178949,2.07195871,2413.9,2413.8,6.62195131]
[1726401179768,2.07195871,2413.9,2413.8,6.62184439]
[1726401179965,2.07195871,2413.9,2413.8,10.76468439]
[1726401180284,2.07195871,2413.9,2413.8,6.62184439]
[1726401180483,2.07195871,2413.9,2413.8,12.14540527]
[1726401181893,2.07195871,2413.9,2413.8,8.00256527]
[1726401182193,2.07195871,2413.9,2413.8,12.14540527]
[1726401183167,2.07195871,2413.9,2413.8,8.00267888]
[1726401184390,2.07195871,2413.9,2413.8,12.14551888]
[1726401184601,2.07195871,2413.9,2413.8,8.00267888]
[1726401184770,2.07195871,2413.9,2413.8,1.60957821]
[1726401185194,2.07195871,2413.9,2413.7,4.14289]
[1726401185574,2.07195871,2413.9,2413.6,5.01268979]
[1726401185919,2.27915458,2413.9,2413.5,5.01277979]
[1726401186127,1.9583,2413.8,2413.4,0.86953979]
[1726401186304,2.18621546,2413.8,2413.3,0.86953979]
[1726401186620,2.18621546,2413.8,2413.4,1.61020109]
[1726401186621,1.9583,2413.6,2413.4,1.61020109]
[1726401186766,1.9583,2413.6,2413.3,0.86953979]
[1726401186965,0.07320961,2413.5,2413.4,1.60961396]
[1726401187409,1.9583,2413.5,2413.4,1.60961396]
[1726401187711,1.9583,2413.5,2413.2,1.30405656]
[1726401187712,2.02904874,2413.5,2413.2,0.86953979]
[1726401188010,2.02904874,2413.5,2413.3,5.75263057]
[1726401188210,2.02904874,2413.5,2413.4,1.60897973]
[1726401188375,2.02904874,2413.5,2413.3,4.14358]
[1726401191700,1.9583,2413.5,2413.3,4.14358]
[1726401192023,1.9583,2413.3,2413.1,5.01344979]
[1726401192197,0.07039724,2413.2,2413.1,8.28785]
[1726401192399,1.9583,2413.3,2413.1,9.8954526]
[1726401192583,1.9583,2413.3,2413.2,4.14387]
[1726401194827,1.9583,2413.7,2413.2,5.05960198]
[1726401194987,1.9583,2413.7,2413.2,4.14387]
[1726401195187,1.9583,2413.7,2413.4,4.14352]
[1726401196019,1.9583,2413.7,2413.2,8.2876]
[1726401196324,2.57238756,2413.7,2413.3,4.14367]
[1726401196509,1.9583,2413.6,2413.2,8.28748]
[1726401196710,2.21553876,2413.6,2413.2,8.28748]
[1726401197800,2.21553876,2413.6,2413.3,4.1436]
[1726401202455,1.9583,2413.6,2413.3,4.1436]
[1726401204147,0.07060822,2413.5,2413.3,4.1436]
[1726401204304,1.9583,2413.4,2413.3,4.1436]
[1726401204644,2.02879106,2413.4,2413.3,4.1436]
[1726401205831,2.02879106,2413.4,2413.2,4.14373]
[1726401206342,2.02879106,2413.4,2413.0,4.14413]
[1726401206948,2.02879106,2413.4,2413.1,4.14398]
[1726401216470,2.02879106,2413.4,2413.0,4.14413]
[1726401216656,1.9583,2413.3,2413.0,4.14413]
[1726401216860,0.06948318,2413.2,2413.0,4.14413]
[1726401217064,1.9583,2413.1,2413.0,4.14413]
[1726401217371,2.02766599,2413.1,2413.0,4.14413]
[1726401222373,2.02766599,2413.1,2412.9,5.0125989]
[1726401223785,0.06936599,2413.1,2413.0,4.14421]
[1726401224074,1.9583,2413.3,2413.0,4.14421]
[1726401224239,0.06688135,2413.2,2413.1,4.14403]
[1726401224577,1.9583,2413.3,2413.1,5.75366999]
[1726401224875,0.06688135,2413.2,2413.1,4.14403]
[1726401225046,1.9583,2413.3,2413.1,5.75358947]
[1726401225245,0.06688135,2413.2,2413.1,4.14403]
[1726401225463,1.9583,2413.3,2413.1,6.62203217]
[1726401225671,1.9583,2413.3,2413.2,1.60976327]
[1726401226046,1.9583,2413.3,2413.2,1.60981895]
[1726401226373,1.9583,2413.3,2413.2,1.60981752]
[1726401226542,1.9583,2413.3,2413.1,4.14403]
[1726401226744,1.9583,2413.3,2413.2,1.60985709]
[1726401226944,1.9583,2413.3,2413.2,1.60986892]
[1726401228239,1.9583,2413.3,2413.0,5.0124489]
[1726401228581,1.9583,2413.3,2413.1,1.61034689]
[1726401228878,1.9583,2413.3,2413.0,5.0124489]
[1726401229186,1.9583,2413.3,2413.1,1.6106735]
[1726401229473,1.9583,2413.5,2413.1,4.14404]
[1726401229690,1.9583,2413.5,2413.2,5.75445423]
[1726401229978,1.9583,2413.5,2413.3,1.61092963]
[1726401230179,1.9583,2413.5,2413.2,4.14386]
[1726401230338,1.9583,2413.5,2413.3,1.61094991]
[1726401230669,1.9583,2413.5,2413.2,5.0120989]
[1726401230973,1.9583,2413.5,2413.3,1.61160987]
[1726401231183,1.9583,2413.5,2413.2,5.0120989]
[1726401231376,1.9583,2413.5,2413.3,1.61157781]
[1726401231572,1.9583,2413.5,2413.2,5.0120989]
[1726401231886,1.9583,2413.5,2413.3,1.61191882]
[1726401232062,1.9583,2413.5,2413.2,5.0120989]
[1726401232258,1.9583,2413.5,2413.3,1.61193292]
[1726401232488,1.9583,2413.5,2413.2,5.0120989]
[1726401232785,1.9583,2413.5,2413.3,1.61196314]
[1726401232993,1.9583,2413.5,2413.2,5.0120989]
[1726401233146,1.9583,2413.5,2413.3,1.61192082]
[1726401233342,1.9583,2413.5,2413.2,5.0120989]
[1726401233567,1.9583,2413.5,2413.3,1.61192725]
[1726401233753,1.9583,2413.5,2413.2,5.0120989]
[1726401233961,1.9583,2413.5,2413.3,1.61198424]
[1726401234251,0.0671115,2413.4,2413.2,5.0120989]
[1726401234446,0.0671115,2413.4,2413.3,1.61201512]
[1726401235097,0.0671115,2413.4,2413.3,2.48025402]
[1726401235803,0.0671115,2413.4,2413.3,1.61201512]
[1726401236802,2.0254115,2413.4,2413.3,1.61244017]
[1726401236959,2.0254115,2413.4,2413.1,0.8682389]
[1726401237297,1.9583,2413.3,2413.2,1.61245624]
[1726401237711,2.0230761,2413.3,2413.2,1.61245624]
[1726401238276,2.0230761,2413.3,2413.2,2.48069514]
[1726401238702,2.0230761,2413.3,2413.2,1.6124214]
[1726401238918,2.0230761,2413.3,2413.2,2.4806603]
[1726401239512,2.0230761,2413.3,2413.2,1.6124214]
[1726401241425,2.28707013,2413.3,2413.2,1.6124214]
[1726401241590,2.28707013,2413.3,2413.0,0.8682389]
[1726401241794,2.28707013,2413.3,2413.1,1.6125696]
[1726401241993,2.28707013,2413.3,2413.0,0.8682389]
[1726401241994,0.70475143,2413.2,2413.0,0.8682389]
[1726401242194,0.70475143,2413.2,2413.1,1.61242514]
[1726401243818,2.66305143,2413.2,2413.1,1.61242514]
[1726401245710,2.66305143,2413.2,2413.1,1.61212781]
[1726401245910,2.66305143,2413.2,2412.9,0.8682389]
[1726401245911,1.9583,2413.1,2412.9,0.8682389]
[1726401246240,1.9583,2412.9,2412.7,0.8682389]
[1726401246522,1.9583,2412.9,2412.6,0.8682389]
[1726401246676,6.10269,2412.9,2412.5,0.8682389]
[1726401246882,7.63648773,2412.9,2412.6,2.48007765]
[1726401247105,7.63648773,2412.9,2412.5,0.8682389]
[1726401247383,7.63648773,2412.9,2412.6,1.61182509]
[1726401247590,0.76364877,2412.8,2412.7,1.61134049]
[1726401247893,2.72194877,2412.8,2412.7,1.61134049]
[1726401248109,2.72194877,2412.8,2412.5,0.8682389]
[1726401248287,2.72194877,2412.8,2412.6,2.47958971]
[1726401248484,1.9583,2412.8,2412.5,0.8682389]
[1726401248698,1.9583,2412.8,2412.6,1.61106668]
[1726401248926,1.9583,2412.8,2412.5,0.8682389]
[1726401249091,0.06400786,2412.7,2412.6,1.61106838]
[1726401249294,1.9583,2412.8,2412.6,1.61106838]
[1726401249508,0.06400786,2412.7,2412.5,0.8682389]
[1726401249707,1.9583,2412.8,2412.6,1.61082903]
[1726401249910,0.06400786,2412.7,2412.5,0.8682389]
[1726401250110,0.06400786,2412.7,2412.6,1.61082856]
[1726401250424,1.9583,2412.8,2412.4,0.8682389]
[1726401250628,0.06392601,2412.7,2412.5,1.61061715]
[1726401250847,0.06392601,2412.7,2412.4,0.8682389]
[1726401251158,0.06368284,2412.6,2412.5,1.61059226]
[1726401251344,0.06368284,2412.6,2412.5,1.61061029]
[1726401251543,1.9583,2412.8,2412.5,1.61061029]
[1726401251701,0.06368284,2412.6,2412.4,0.8682389]
[1726401251905,2.568569,2412.8,2412.3,1.30235835]
[1726401251906,2.568569,2412.8,2412.3,0.8682389]
[1726401252232,0.06379168,2412.7,2412.5,2.3874]
[1726401252641,1.9583,2412.8,2412.5,2.3874]
[1726401252799,0.06367235,2412.6,2412.5,2.3874]
[1726401252999,1.9583,2412.8,2412.5,2.3874]
[1726401253305,4.14439,2412.9,2412.5,2.3874]
[1726401253665,0.06390681,2412.8,2412.5,2.3874]
[1726401262070,1.9583,2413.0,2412.5,2.3874]
[1726401262349,0.06401352,2412.9,2412.5,2.3874]
[1726401270428,0.06401352,2412.9,2412.5,6.53233]
[1726401271831,0.06401352,2412.9,2412.6,2.3282]
[1726401272189,4.1441,2413.1,2412.6,2.3282]
[1726401272415,0.06156333,2412.8,2412.6,2.3282]
[1726401272630,4.1441,2413.1,2412.6,2.3282]
[1726401272839,0.0614461,2412.7,2412.6,2.3282]
[1726401273049,4.1441,2413.1,2412.6,3.93731094]
[1726401273201,0.0614461,2412.7,2412.6,2.3282]
[1726401273499,0.0614461,2412.7,2412.6,3.93746186]
[1726401273700,4.1441,2413.1,2412.6,3.93746186]
[1726401273900,0.06179775,2413.0,2412.6,2.3282]
[1726401276305,0.06179775,2413.0,2412.6,6.47307]
[1726401279241,2.02009775,2413.0,2412.6,6.47307]
[1726401279408,2.44068753,2413.0,2412.6,6.47307]
[1726401280053,2.44068753,2413.0,2412.7,1.61023076]
[1726401280219,2.44068753,2413.0,2412.6,6.47307]
[1726401280420,2.44068753,2413.0,2412.7,1.61029053]
[1726401280621,2.44068753,2413.0,2412.6,7.3413089]
[1726401280823,2.44068753,2413.0,2412.7,1.61050528]
[1726401281158,2.44068753,2413.0,2412.6,6.47307]
[1726401281520,2.44068753,2413.0,2412.7,1.6105419]
[1726401281831,2.44068753,2413.0,2412.6,7.3413089]
[1726401282046,2.44068753,2413.0,2412.7,1.61083333]
[1726401282356,2.44068753,2413.0,2412.6,7.3413089]
[1726401282529,2.44068753,2413.0,2412.7,1.61095641]
[1726401282729,2.44068753,2413.0,2412.6,7.3413089]
[1726401282930,2.44068753,2413.0,2412.7,1.61123115]
[1726401283130,2.44068753,2413.0,2412.6,7.3413089]
[1726401283333,2.44068753,2413.0,2412.7,1.61124775]
[1726401283534,2.44068753,2413.0,2412.6,7.3413089]
[1726401283720,2.44068753,2413.0,2412.7,1.61148271]
[1726401283941,2.44068753,2413.0,2412.6,7.3413089]
[1726401284121,2.44068753,2413.0,2412.7,1.61144814]
[1726401284323,2.44068753,2413.0,2412.6,7.3413089]
[1726401284522,2.44068753,2413.0,2412.7,1.61147851]
[1726401284858,0.48238753,2413.0,2412.6,7.3413089]
[1726401285016,0.06179775,2413.0,2412.7,1.61172722]
[1726401285217,0.06179775,2413.0,2412.6,7.3413089]
[1726401285417,0.06179775,2413.0,2412.7,1.61175296]
[1726401285748,0.06179775,2413.0,2412.6,7.3413089]
[1726401286063,0.06179775,2413.0,2412.7,2.48031535]
[1726401286357,0.06179775,2413.0,2412.6,7.3413089]
[1726401286656,0.06179775,2413.0,2412.7,1.61209498]
[1726401286824,0.67821753,2413.0,2412.6,7.3413089]
[1726401287158,0.06179775,2413.0,2412.7,1.61206258]
[1726401287459,0.06179775,2413.0,2412.8,1.61206258]
[1726401287665,0.67821753,2413.0,2412.6,7.3412389]
[1726401287971,0.06179775,2413.0,2412.7,2.48037696]
[1726401288143,0.06179775,2413.0,2412.8,1.61213806]
[1726401288345,6.10218,2413.2,2412.7,0.8682389]
[1726401288536,0.06168264,2412.9,2412.8,1.61228081]
[1726401288738,7.855773,2413.2,2412.8,1.61228081]
[1726401288933,7.855773,2413.2,2412.7,0.8682389]
[1726401289252,7.855773,2413.2,2412.8,1.61231584]
[1726401289461,7.855773,2413.2,2412.9,1.61253732]
[1726401289657,1.1999523,2413.1,2412.8,0.8682389]
[1726401289842,1.1999523,2413.1,2412.7,0.8682389]
[1726401290046,7.855773,2413.2,2412.8,1.61258327]
[1726401290347,7.855773,2413.2,2412.9,1.6125707]
[1726401290654,3.711893,2413.2,2412.8,0.8682389]
[1726401290862,1.1999523,2413.1,2412.9,1.61275867]
[1726401291178,1.1999523,2413.1,2412.8,0.8682389]
[1726401291359,1.1999523,2413.1,2412.9,1.61272768]
[1726401291559,1.1999523,2413.1,2412.8,0.8682389]
[1726401291867,1.1999523,2413.1,2412.9,1.61306681]
[1726401292176,1.1999523,2413.1,2412.8,0.8682389]
[1726401292334,1.1999523,2413.1,2412.9,1.61301276]
[1726401292534,1.1999523,2413.1,2412.8,0.8682389]
[1726401292736,1.1999523,2413.1,2412.9,1.6129975]
[1726401292939,1.1999523,2413.1,2412.8,0.8682389]
[1726401293138,1.1999523,2413.1,2412.9,3.99230375]
[1726401293464,1.9583,2413.2,2412.9,2.3793]
[1726401294131,0.06191705,2413.1,2412.9,2.3793]
[1726401301683,0.06191705,2413.1,2412.8,5.0127889]
[1726401301885,0.06191705,2413.1,2412.9,1.61276264]
[1726401302087,0.67830976,2413.1,2412.8,5.0127889]
[1726401302386,0.67830976,2413.1,2412.9,1.61266992]
[1726401302693,0.67830976,2413.1,2412.8,5.0127889]
[1726401302989,0.67830976,2413.1,2412.9,1.61267081]
[1726401303170,0.67830976,2413.1,2412.7,1.30235835]
[1726401303171,1.9583,2413.0,2412.7,0.8682389]
[1726401303373,0.26366098,2412.9,2412.8,2.4810713]
[1726401303574,0.32259146,2412.9,2412.8,2.4810713]
[1726401304085,0.32259146,2412.9,2412.8,1.6128324]
[1726401306275,0.05893048,2412.9,2412.8,1.6128324]
[1726401311156,0.05893048,2412.9,2412.6,0.8682389]
[1726401311355,0.05893048,2412.9,2412.7,1.611445]
[1726401311555,0.05893048,2412.9,2412.6,0.8682389]
[1726401311768,0.05893048,2412.9,2412.7,2.47962738]
[1726401311966,0.05893048,2412.9,2412.8,1.61138848]
[1726401312767,0.05893048,2412.9,2412.6,0.8682389]
[1726401312967,0.05893048,2412.9,2412.7,1.61139119]
[1726401313195,0.05893048,2412.9,2412.6,0.8682389]
[1726401313387,0.05893048,2412.9,2412.7,1.61135378]
[1726401313560,0.05893048,2412.9,2412.6,0.8682389]
[1726401313761,0.05893048,2412.9,2412.7,1.61142897]
[1726401313986,0.05893048,2412.9,2412.6,0.8682389]
[1726401314181,0.05893048,2412.9,2412.7,1.61140514]
[1726401314386,0.05893048,2412.9,2412.6,0.8682389]
[1726401314596,0.05893048,2412.9,2412.7,1.61140722]
[1726401314754,0.05893048,2412.9,2412.6,0.8682389]
[1726401315059,0.05893048,2412.9,2412.7,1.61141406]
[1726401315259,0.05893048,2412.9,2412.6,0.8682389]
[1726401315583,0.05893048,2412.9,2412.7,1.61127359]
[1726401315783,0.05893048,2412.9,2412.6,0.8682389]
[1726401315969,0.05893048,2412.9,2412.7,1.611205]
[1726401316169,0.05893048,2412.9,2412.6,0.8682389]
[1726401316369,0.05893048,2412.9,2412.7,1.61118229]
[1726401316597,0.05893048,2412.9,2412.6,0.8682389]